fUST/lending_fUST_20240105
["ID","MTS","AMOUNT","RATE_DAILY","PERIOD"]
[310175347,1704389438971,-364.43468747,0.00037998,4]
[310175349,1704389438980,-291.57730732,0.00037998,4]
[310175351,1704389438989,-245.68790721,0.00037998,4]
[310175367,1704389439144,-16942.75451085,0.00037998,2]
[310175370,1704389439155,-154.82968734,0.00037998,4]
[310175371,1704389439164,-157.86918355,0.00037998,4]
[310175373,1704389439174,-28778.05831615,0.00037999,14]
[310175375,1704389439184,-622.88837425,0.00037999,4]
[310175377,1704389439193,-467.16628069,0.00037999,7]
[310175379,1704389439203,-228.93519686,0.00038,3]
[310175381,1704389439213,-154.73694719,0.00038,7]
[310175383,1704389439222,-379.48356558,0.00038,4]
[310175385,1704389439231,-333856.03332819,0.00038,10]
[310175388,1704389439244,-1863.8692201,0.00038,10]
[310175411,1704389439467,-1424.96561769,0.00038,10]
[310175592,1704389441396,-2523.83,0.0003779,3]
[310175594,1704389441407,-47428.46555774,0.00038,10]
[310175734,1704389443185,-970.78962578,0.00038,10]
[310175943,1704389446186,-171.52799155,0.0003744,8]
[310175945,1704389446197,-13886.58489441,0.00038,10]
[310175986,1704389446733,-34886.02127792,0.00038,10]
[310176135,1704390556152,-154.7215013,0.0003184,5]
[310176136,1704390556174,-167.0,0.00033,2]
[310176137,1704390556195,-1000.0,0.00034186,7]
[310176138,1704390556216,-2129.0184987,0.00034187,4]
[310176139,1704390558119,-20.44197755,0.00034187,4]
[310176140,1704390558139,-166.01336823,0.00034892,2]
[310176205,1704390632288,-154.70605849,0.00033991,5]
[310176207,1704390632298,-2.04364877,0.00034892,2]
[310176209,1704390632307,-1000.0,0.00035561,7]
[310176211,1704390632317,-260.601942,0.00035562,2]
[310176213,1704390632327,-257.59634,0.00035616,120]
[310176214,1704390632336,-252.84514895,0.000359,2]
[310176216,1704390632344,-174.658866,0.0003645,2]
[310176218,1704390632353,-155.0,0.000369,2]
[310176221,1704390632362,-999.2,0.00037,7]
[310176224,1704390632371,-1650.87169686,0.00037,2]
[310176227,1704390632380,-167.83,0.0003763,2]
[310176230,1704390632390,-167.83,0.0003763,2]
[310176233,1704390632400,-167.83,0.0003763,2]
[310176235,1704390632409,-167.83,0.0003763,2]
[310176238,1704390632418,-167.83,0.0003763,2]
[310176241,1704390632427,-167.83,0.0003763,2]
[310176243,1704390632437,-167.83,0.0003763,2]
[310176245,1704390632446,-167.83,0.0003763,2]
[310176247,1704390632454,-167.83,0.0003763,2]
[310176249,1704390632463,-167.83,0.0003763,2]
[310176250,1704390632472,-167.83,0.0003763,2]
[310176252,1704390632481,-242.34119286,0.0003763,2]
[310176254,1704390632490,-549.0,0.00037644,2]
[310176255,1704390632499,-60028.87725279,0.0003777,30]
[310176257,1704390632508,-1752.66,0.00037888,3]
[310176259,1704390632518,-2103.19,0.00037889,3]
[310176261,1704390632526,-1029.24597412,0.00037898,4]
[310176263,1704390632535,-1365.37608364,0.00037898,25]
[310176265,1704390632544,-5930.79103149,0.00037899,2]
[310176266,1704390632554,-147364.66306646,0.000379,2]
[310176268,1704390632564,-574.59573109,0.00037997,4]
[310176270,1704390632573,-630.15850281,0.00037998,2]
[310176272,1704390632582,-45332.5524851,0.00037998,4]
[310176274,1704390632591,-3707.71891533,0.00037999,4]
[310176276,1704390632600,-2141.11499838,0.00037999,2]
[310176278,1704390632609,-163.95402981,0.00037999,4]
[310176279,1704390632618,-228.93519685,0.00038,3]
[310176281,1704390632627,-219957.14887482,0.00038,10]
[310176282,1704390632637,-4779.79120143,0.00038,30]
[310176284,1704390632647,-1485.21853168,0.00038,120]
[310176286,1704390632656,-815.37575522,0.00038,4]
[310176288,1704390632666,-379.48356558,0.00038,4]
[310176289,1704390632675,-248.55564675,0.00038,7]
[310176291,1704390632684,-438.37067603,0.00038,30]
[310176293,1704390632693,-2043.88723111,0.00038,7]
[310176295,1704390632702,-500.0,0.00038,7]
[310176297,1704390632712,-155.0,0.0003827,2]
[310176299,1704390632721,-789.42881433,0.00038352,4]
[310176301,1704390632730,-253.22751891,0.00038352,4]
[310176302,1704390632739,-154.87609912,0.00038354,4]
[310176304,1704390632749,-160.74311348,0.00038354,2]
[310176306,1704390632758,-575.25064281,0.00038354,4]
[310176308,1704390632767,-782.10923875,0.00038354,4]
[310176310,1704390632777,-433.14504265,0.00038354,4]
[310176312,1704390632786,-4902.83030838,0.00038354,4]
[310176314,1704390632795,-2547.93014574,0.00038354,7]
[310176316,1704390632804,-470.39319624,0.00038354,4]
[310176318,1704390632813,-1192.16675463,0.00038354,4]
[310176319,1704390632823,-361.00981063,0.00038355,4]
[310176321,1704390632832,-72456.04440443,0.00038355,2]
[310176323,1704390632841,-344.75743865,0.00038355,7]
[310176325,1704390632850,-500.0,0.00038356,7]
[310176327,1704390632859,-1606.58123388,0.00038356,7]
[310176329,1704390632869,-500.0,0.00038356,7]
[310176331,1704390632878,-501.82954482,0.00038356,7]
[310176333,1704390632887,-501.49144187,0.00038356,7]
[310176335,1704390632898,-500.0,0.00038356,7]
[310176336,1704390632907,-500.0,0.00038356,7]
[310176338,1704390632917,-500.0,0.00038356,7]
[310176340,1704390632926,-500.0,0.00038356,7]
[310176342,1704390632936,-500.0,0.00038356,7]
[310176344,1704390632945,-513.76685189,0.00038356,7]
[310176346,1704390632955,-500.0,0.00038356,7]
[310176348,1704390632963,-500.0,0.00038356,7]
[310176350,1704390632972,-500.0,0.00038356,7]
[310176351,1704390632982,-500.0,0.00038356,7]
[310176353,1704390632991,-500.0,0.00038356,7]
[310176355,1704390633000,-500.0,0.00038356,7]
[310176357,1704390633009,-500.0,0.00038356,7]
[310176358,1704390633018,-520.05263515,0.00038356,7]
[310176360,1704390633028,-115.69148028,0.00038356,7]
[310176362,1704390633041,-384.30851972,0.00038356,7]
[310176364,1704390633050,-500.0,0.00038356,7]
[310176366,1704390633059,-500.0,0.00038356,7]
[310176368,1704390633068,-500.0,0.00038356,7]
[310176370,1704390633077,-502.58525696,0.00038356,7]
[310176371,1704390633086,-500.0,0.00038356,7]
[310176373,1704390633094,-500.0,0.00038356,7]
[310176375,1704390633104,-150.0,0.00038356,7]
[310176377,1704390633113,-500.0,0.00038356,7]
[310176379,1704390633127,-496.31685656,0.00038356,7]
[310176380,1704390633136,-1000.0,0.00038356,2]
[310176382,1704390633146,-518.2220612,0.00038356,7]
[310176384,1704390633157,-500.0,0.00038356,7]
[310176386,1704390633166,-740.34,0.00038356,7]
[310176388,1704390633176,-500.0,0.00038356,7]
[310176390,1704390633185,-174.02945353,0.00038356,7]
[310176391,1704390633194,-500.0,0.00038356,7]
[310176393,1704390633203,-463.09863253,0.00038356,7]
[310176395,1704390633213,-211.99583497,0.00038356,7]
[310176396,1704390633222,-174.27160317,0.00038356,7]
[310176397,1704390633232,-500.0,0.00038356,7]
[310176398,1704390633242,-150.99650707,0.00038356,7]
[310176399,1704390633252,-173.44529673,0.00038356,7]
[310176400,1704390633261,-500.0,0.00038356,7]
[310176401,1704390633271,-500.0,0.00038356,7]
[310176402,1704390633280,-534.00928563,0.00038356,7]
[310176403,1704390633289,-354.35811538,0.00038356,7]
[310176404,1704390633298,-500.0,0.00038356,7]
[310176405,1704390633309,-500.0,0.00038356,7]
[310176406,1704390633318,-500.0,0.00038356,7]
[310176407,1704390633327,-500.0,0.00038356,7]
[310176408,1704390633336,-293.33550958,0.00038356,7]
[310176409,1704390633345,-500.0,0.00038356,7]
[310176410,1704390633355,-500.0,0.00038356,7]
[310176411,1704390633364,-500.0,0.00038356,7]
[310176412,1704390633374,-2189.53,0.00038356,7]
[310176413,1704390633383,-500.0,0.00038356,7]
[310176414,1704390633393,-500.0,0.00038356,7]
[310176415,1704390633402,-500.25977514,0.00038356,7]
[310176416,1704390633411,-500.76130408,0.00038356,7]
[310176417,1704390633421,-500.25361257,0.00038356,7]
[310176418,1704390633430,-500.0,0.00038356,7]
[310176419,1704390633439,-500.0,0.00038356,7]
[310176420,1704390633449,-500.0,0.00038356,7]
[310176421,1704390633458,-138.68757071,0.00038356,7]
[310176434,1704390638447,-362.89375476,0.00038356,7]
[310176435,1704390638457,-500.0,0.00038356,7]
[310176436,1704390638466,-302.95024203,0.00038356,7]
[310176437,1704390638477,-333.2859069,0.00038356,7]
[310176438,1704390638486,-503.88246748,0.00038356,7]
[310176439,1704390638495,-712.1,0.00038356,7]
[310176440,1704390638504,-500.0,0.00038356,7]
[310176441,1704390638513,-500.0,0.00038356,7]
[310176442,1704390638522,-500.0,0.00038356,7]
[310176443,1704390638530,-375.96789313,0.00038356,7]
[310176444,1704390638543,-124.03210687,0.00038356,7]
[310176445,1704390638552,-500.0,0.00038356,7]
[310176446,1704390638561,-500.0,0.00038356,7]
[310176447,1704390638571,-893.18,0.00038356,7]
[310176448,1704390638581,-2362.78789313,0.00038356,10]
[310176449,1704390638593,-563.33400485,0.00038356,10]
[310176450,1704390638604,-2073.87810202,0.00038356,10]
[310176451,1704390638613,-500.0,0.00038356,7]
[310176452,1704390638621,-500.0,0.00038356,2]
[310176453,1704390638631,-500.0,0.00038356,2]
[310176454,1704390638639,-775.81266015,0.00038356,7]
[310176456,1704390638653,-31.71733985,0.00038356,7]
[310176457,1704390638662,-574.03322489,0.00038356,7]
[310176459,1704390638670,-500.0,0.00038356,7]
[310176460,1704390638679,-355.90332341,0.00038356,7]
[310176462,1704390638692,-144.09667659,0.00038356,7]
[310176464,1704390638701,-503.21043275,0.00038356,7]
[310176465,1704390638710,-600.83019058,0.00038356,7]
[310176468,1704390638721,-500.0,0.00038356,7]
[310176469,1704390638731,-1878.36,0.00038356,7]
[310176472,1704390638741,-500.0,0.00038356,7]
[310176473,1704390638751,-500.0,0.00038356,7]
[310176475,1704390638761,-1038.7,0.00038356,7]
[310176478,1704390638772,-500.0,0.00038356,7]
[310176479,1704390638782,-500.0,0.00038356,7]
[310176481,1704390638792,-532.01592707,0.00038356,7]
[310176483,1704390638803,-500.5192727,0.00038356,7]
[310176486,1704390638812,-500.0,0.00038356,7]
[310176487,1704390638822,-500.0,0.00038356,7]
[310176489,1704390638831,-500.0,0.00038356,7]
[310176491,1704390638841,-487.64848563,0.00038356,7]
[310176493,1704390638851,-500.0,0.00038356,2]
[310176495,1704390638861,-500.0,0.00038356,7]
[310176497,1704390638872,-500.0,0.00038356,7]
[310176499,1704390638881,-338.25803684,0.00038356,7]
[310176501,1704390638893,-505.59078828,0.00038356,7]
[310176503,1704390638904,-542.43057136,0.00038356,7]
[310176505,1704390638914,-500.0,0.00038356,7]
[310176507,1704390638923,-501.28017285,0.00038356,7]
[310176509,1704390638933,-500.0,0.00038356,7]
[310176511,1704390638943,-500.0,0.00038356,7]
[310176513,1704390638952,-500.0,0.00038356,7]
[310176515,1704390638962,-521.25997661,0.00038356,7]
[310176517,1704390638972,-502.95259749,0.00038356,7]
[310176519,1704390638982,-503.64883861,0.00038356,7]
[310176521,1704390638991,-219.32438583,0.00038356,7]
[310176523,1704390639001,-500.0,0.00038356,7]
[310176525,1704390639010,-337.36555326,0.00038356,7]
[310176527,1704390639020,-319.51347752,0.00038356,7]
[310176529,1704390639030,-570.18020903,0.00038356,7]
[310176531,1704390639039,-473.15342655,0.00038356,7]
[310176533,1704390639052,-48.71534083,0.00038356,7]
[310176535,1704390639063,-369.5718302,0.00038356,7]
[310176537,1704390639073,-500.0,0.00038356,7]
[310176539,1704390639083,-500.0,0.00038356,7]
[310176541,1704390639093,-504.46693203,0.00038356,7]
[310176543,1704390639103,-500.0,0.00038356,7]
[310176545,1704390639116,-175.92039455,0.00038356,2]
[310176547,1704390639126,-500.0,0.00038356,7]
[310176549,1704390639136,-500.0,0.00038356,7]
[310176551,1704390639147,-500.0,0.00038356,7]
[310176553,1704390639156,-500.0,0.00038356,7]
[310176555,1704390639166,-203.245361,0.00038356,7]
[310176556,1704390639176,-500.0,0.00038356,7]
[310176558,1704390639186,-1000.0,0.00038356,5]
[310176560,1704390639196,-500.0,0.00038356,7]
[310176562,1704390639205,-500.0,0.00038356,7]
[310176564,1704390639214,-500.0,0.00038356,7]
[310176566,1704390639223,-508.06817996,0.00038356,7]
[310176568,1704390639232,-560.69836054,0.00038356,7]
[310176570,1704390639241,-500.0,0.00038356,7]
[310176572,1704390639250,-500.0,0.00038356,7]
[310176574,1704390639260,-361.22175449,0.00038356,7]
[310176576,1704390639271,-500.0,0.00038356,7]
[310176578,1704390639281,-500.0,0.00038356,7]
[310176579,1704390639291,-671.4,0.00038356,7]
[310176582,1704390639301,-500.0,0.00038356,7]
[310176584,1704390639311,-500.0,0.00038356,7]
[310176585,1704390639321,-500.0,0.00038356,7]
[310176587,1704390639332,-500.0,0.00038356,7]
[310176590,1704390639341,-1014.23,0.00038356,7]
[310176591,1704390639351,-345.03964036,0.00038356,7]
[310176593,1704390639362,-779.12,0.00038356,7]
[310176595,1704390639372,-500.0,0.00038356,7]
[310176597,1704390639382,-516.47422852,0.00038356,30]
[310176599,1704390639392,-500.0,0.00038356,7]
[310176601,1704390639402,-500.0,0.00038356,7]
[310176603,1704390639410,-500.0,0.00038356,7]
[310176605,1704390639419,-500.0,0.00038356,7]
[310176607,1704390639428,-510.54073913,0.00038356,7]
[310176609,1704390639438,-500.0,0.00038356,7]
[310176611,1704390639447,-253.20090575,0.00038356,7]
[310176613,1704390639456,-500.0,0.00038356,7]
[310176615,1704390639465,-500.0,0.00038356,7]
[310176617,1704390639474,-502.22444369,0.00038356,7]
[310176619,1704390639483,-504.55068619,0.00038356,7]
[310176621,1704390639492,-775.88,0.00038356,7]
[310176623,1704390639500,-500.0,0.00038356,7]
[310176625,1704390639509,-560.84728984,0.00038356,7]
[310176626,1704390639518,-500.0,0.00038356,7]
[310176628,1704390639528,-500.0,0.00038356,7]
[310176631,1704390639538,-500.0,0.00038356,7]
[310176633,1704390639549,-506.00434185,0.00038356,7]
[310176635,1704390639560,-500.0,0.00038356,7]
[310176637,1704390639570,-202.16377138,0.00038356,7]
[310176639,1704390639580,-500.0,0.00038356,7]
[310176641,1704390639590,-500.0,0.00038356,7]
[310176643,1704390639601,-533.23208133,0.00038356,7]
[310176644,1704390639611,-500.0,0.00038356,7]
[310176646,1704390639620,-500.0,0.00038356,7]
[310176649,1704390639630,-2778.32,0.00038356,7]
[310176651,1704390639639,-244.19954149,0.00038356,7]
[310176653,1704390639650,-500.0,0.00038356,7]
[310176655,1704390639660,-1263.33,0.00038356,7]
[310176657,1704390639669,-505.41670145,0.00038356,7]
[310176659,1704390639678,-500.0,0.00038356,7]
[310176660,1704390639688,-500.0,0.00038356,7]
[310176662,1704390639697,-525.27283003,0.00038356,7]
[310176664,1704390639706,-500.0,0.00038356,7]
[310176666,1704390639715,-500.0,0.00038356,7]
[310176668,1704390639724,-501.267943,0.00038356,7]
[310176670,1704390639734,-500.0,0.00038356,7]
[310176672,1704390639743,-571.84505234,0.00038356,7]
[310176674,1704390639752,-500.0,0.00038356,7]
[310176676,1704390639762,-500.0,0.00038356,7]
[310176678,1704390639771,-500.0,0.00038356,7]
[310176680,1704390639782,-240.17936533,0.00038356,7]
[310176683,1704390639792,-500.0,0.00038356,7]
[310176684,1704390639802,-515.95010387,0.00038356,7]
[310176686,1704390639812,-500.0,0.00038356,7]
[310176688,1704390639821,-500.0,0.00038356,7]
[310176690,1704390639830,-500.0,0.00038356,7]
[310176692,1704390639840,-832.44,0.00038356,7]
[310176694,1704390639850,-500.0,0.00038356,7]
[310176697,1704390639859,-605.24,0.00038356,7]
[310176699,1704390639868,-500.0,0.00038356,7]
[310176701,1704390639877,-500.0,0.00038356,7]
[310176703,1704390639886,-311.17754081,0.00038356,7]
[310176705,1704390639896,-500.0,0.00038356,7]
[310176706,1704390639906,-500.0,0.00038356,7]
[310176708,1704390639917,-624.0,0.00038356,7]
[310176710,1704390639926,-500.0,0.00038356,7]
[310176712,1704390639935,-500.0,0.00038356,7]
[310176714,1704390639944,-500.0,0.00038356,7]
[310176717,1704390639955,-500.0,0.00038356,7]
[310176718,1704390639965,-500.0,0.00038356,7]
[310176720,1704390639974,-781.28,0.00038356,7]
[310176722,1704390639983,-500.0,0.00038356,7]
[310176724,1704390639992,-500.0,0.00038356,7]
[310176726,1704390640003,-500.0,0.00038356,7]
[310176728,1704390640012,-500.0,0.00038356,7]
[310176731,1704390640022,-500.0,0.00038356,7]
[310176733,1704390640030,-596.820312,0.00038356,7]
[310176734,1704390640039,-500.0,0.00038356,7]
[310176735,1704390640048,-1467.51,0.00038356,7]
[310176737,1704390640057,-500.0,0.00038356,7]
[310176739,1704390640066,-500.0,0.00038356,7]
[310176741,1704390640075,-500.0,0.00038356,7]
[310176743,1704390640084,-500.0,0.00038356,7]
[310176745,1704390640093,-500.0,0.00038356,7]
[310176747,1704390640102,-3212.75,0.00038356,7]
[310176749,1704390640112,-500.0,0.00038356,7]
[310176750,1704390640122,-500.0,0.00038356,7]
[310176752,1704390640131,-500.0,0.00038356,7]
[310176754,1704390640141,-500.0,0.00038356,7]
[310176756,1704390640149,-500.0,0.00038356,7]
[310176758,1704390640158,-500.0,0.00038356,7]
[310176760,1704390640168,-500.0,0.00038356,7]
[310176762,1704390640176,-500.0,0.00038356,7]
[310176764,1704390640187,-500.0,0.00038356,7]
[310176766,1704390640196,-501.35968135,0.00038356,7]
[310176768,1704390640205,-716.96,0.00038356,7]
[310176770,1704390640215,-571.46,0.00038356,7]
[310176772,1704390640225,-500.0,0.00038356,7]
[310176774,1704390640234,-687.09,0.00038356,7]
[310176776,1704390640243,-500.0,0.00038356,7]
[310176788,1704390640344,-500.0,0.00038356,7]
[310176790,1704390640354,-500.0,0.00038356,7]
[310176792,1704390640363,-502.2681211,0.00038356,7]
[310176794,1704390640372,-638.46,0.00038356,7]
[310176796,1704390640381,-500.0,0.00038356,7]
[310176798,1704390640390,-500.0,0.00038356,7]
[310176800,1704390640399,-10003.55,0.00038356,7]
[310176802,1704390640408,-500.0,0.00038356,7]
[310176804,1704390640417,-500.0,0.00038356,7]
[310176805,1704390640426,-645.09,0.00038356,7]
[310176807,1704390640435,-500.0,0.00038356,7]
[310176810,1704390640454,-500.0,0.00038356,7]
[310176813,1704390640466,-500.0,0.00038356,7]
[310176815,1704390640475,-500.0,0.00038356,7]
[310176818,1704390640486,-516.60431765,0.00038356,7]
[310176820,1704390640495,-500.0,0.00038356,7]
[310176822,1704390640505,-500.72493937,0.00038356,7]
[310176824,1704390640515,-500.0,0.00038356,7]
[310176825,1704390640524,-500.0,0.00038356,7]
[310176827,1704390640535,-500.0,0.00038356,7]
[310176830,1704390640546,-500.0,0.00038356,7]
[310176832,1704390640557,-624.2989346,0.00038356,7]
[310176834,1704390640566,-500.0,0.00038356,7]
[310176836,1704390640577,-661.79,0.00038356,7]
[310176837,1704390640588,-500.0,0.00038356,7]
[310176839,1704390640599,-500.0,0.00038356,7]
[310176842,1704390640610,-500.0,0.00038356,7]
[310176844,1704390640620,-500.0,0.00038356,7]
[310176846,1704390640630,-500.0,0.00038356,7]
[310176847,1704390640639,-500.0,0.00038356,7]
[310176849,1704390640650,-574.68684892,0.00038356,7]
[310176851,1704390640660,-527.64080947,0.00038356,7]
[310176853,1704390640670,-500.0,0.00038356,7]
[310176856,1704390640680,-500.0,0.00038356,7]
[310176857,1704390640690,-500.0,0.00038356,7]
[310176860,1704390640700,-500.0,0.00038356,7]
[310176862,1704390640710,-500.0,0.00038356,7]
[310176864,1704390640719,-23375.12,0.00038356,7]
[310176866,1704390640729,-3126.84,0.00038356,7]
[310176868,1704390640740,-500.0,0.00038356,7]
[310176869,1704390640750,-500.0,0.00038356,7]
[310176871,1704390640760,-6537.52,0.00038356,7]
[310176873,1704390640770,-500.0,0.00038356,7]
[310176875,1704390640780,-500.0,0.00038356,7]
[310176877,1704390640789,-1023.36,0.00038356,7]
[310176879,1704390640799,-413.73400645,0.00038356,7]
[310176881,1704390640809,-219.00598534,0.00038356,7]
[310176883,1704390640818,-500.0,0.00038356,7]
[310176885,1704390640828,-500.0,0.00038356,7]
[310176887,1704390640837,-500.0,0.00038356,7]
[310176889,1704390640847,-500.0,0.00038356,7]
[310176891,1704390640856,-500.0,0.00038356,7]
[310176893,1704390640866,-2021.56,0.00038356,7]
[310176894,1704390640875,-500.0,0.00038356,7]
[310176896,1704390640885,-500.0,0.00038356,7]
[310176898,1704390640894,-689.43,0.00038356,7]
[310176900,1704390640904,-500.0,0.00038356,7]
[310176902,1704390640913,-221.18926092,0.00038356,7]
[310176904,1704390640923,-3287.28,0.00038356,7]
[310176906,1704390640933,-500.0,0.00038356,7]
[310176908,1704390640942,-500.0,0.00038356,7]
[310176910,1704390640952,-500.0,0.00038356,7]
[310176912,1704390640961,-5962.16,0.00038356,7]
[310176914,1704390640971,-1310.53,0.00038356,7]
[310176916,1704390640980,-500.0,0.00038356,7]
[310176918,1704390640990,-421.75949392,0.00038356,7]
[310176920,1704390640999,-500.0,0.00038356,7]
[310176922,1704390641008,-500.0,0.00038356,7]
[310176924,1704390641017,-500.0,0.00038356,7]
[310176926,1704390641026,-500.0,0.00038356,7]
[310176928,1704390641036,-500.0,0.00038356,7]
[310176930,1704390641045,-500.0,0.00038356,7]
[310176932,1704390641053,-500.0,0.00038356,7]
[310176934,1704390641063,-500.0,0.00038356,7]
[310176936,1704390641072,-200.0,0.00038356,7]
[310176938,1704390641081,-500.0,0.00038356,7]
[310176940,1704390641090,-540.21865481,0.00038356,7]
[310176942,1704390641099,-500.0,0.00038356,7]
[310176944,1704390641108,-500.0,0.00038356,7]
[310176946,1704390641118,-500.0,0.00038356,7]
[310176948,1704390641131,-1405.61,0.00038356,7]
[310176950,1704390641140,-500.0,0.00038356,7]
[310176952,1704390641150,-500.0,0.00038356,7]
[310176954,1704390641159,-1064.58,0.00038356,7]
[310176956,1704390641168,-500.0,0.00038356,7]
[310176958,1704390641178,-500.0,0.00038356,7]
[310176960,1704390641187,-500.0,0.00038356,2]
[310176962,1704390641196,-500.0,0.00038356,7]
[310176964,1704390641205,-737.27,0.00038356,7]
[310176966,1704390641215,-500.0,0.00038356,7]
[310176968,1704390641225,-500.0,0.00038356,7]
[310176970,1704390641234,-500.0,0.00038356,7]
[310176972,1704390641243,-500.0,0.00038356,7]
[310176974,1704390641252,-3218.37,0.00038356,7]
[310176976,1704390641262,-2249.29,0.00038356,7]
[310176978,1704390641271,-502.84597761,0.00038356,7]
[310176980,1704390641280,-451.19088536,0.00038356,2]
[310176982,1704390641289,-500.0,0.00038356,7]
[310176984,1704390641298,-500.0,0.00038356,7]
[310176986,1704390641307,-502.46968567,0.00038356,2]
[310176988,1704390641316,-781.73,0.00038356,7]
[310176990,1704390641325,-1816.94083553,0.00038458,2]
[310176992,1704390641334,-150.77949282,0.00038461,2]
[310176994,1704390641344,-369.24987704,0.00038628,4]
[310176996,1704390641353,-553.40007214,0.00038629,4]
[310176998,1704390641362,-500.0,0.0003863,7]
[310177000,1704390641371,-644.06871811,0.0003863,7]
[310177002,1704390641380,-500.0,0.0003863,7]
[310177004,1704390641389,-500.0,0.0003863,7]
[310177006,1704390641398,-500.0,0.0003863,7]
[310177008,1704390641408,-500.0,0.0003863,7]
[310177009,1704390641418,-500.0,0.0003863,7]
[310177011,1704390641427,-500.0,0.0003863,7]
[310177014,1704390641437,-501.81811394,0.0003863,7]
[310177015,1704390641446,-500.0,0.0003863,7]
[310177018,1704390641455,-500.0,0.0003863,7]
[310177020,1704390641465,-500.0,0.0003863,7]
[310177022,1704390641473,-500.0,0.0003863,7]
[310177025,1704390641492,-500.0,0.0003863,7]
[310177027,1704390641506,-500.0,0.0003863,7]
[310177030,1704390641520,-416.40934462,0.0003863,7]
[310177032,1704390641534,-500.0,0.0003863,7]
[310177034,1704390641549,-487.81165154,0.0003863,7]
[310177036,1704390641560,-500.0,0.0003863,7]
[310177039,1704390641573,-500.0,0.0003863,7]
[310177041,1704390641587,-500.0,0.0003863,7]
[310177044,1704390641602,-500.0,0.0003863,7]
[310177046,1704390641614,-611.55320608,0.0003863,7]
[310177048,1704390641628,-500.0,0.0003863,7]
[310177050,1704390641642,-500.0,0.0003863,7]
[310177052,1704390641655,-553.27752338,0.0003863,7]
[310177055,1704390641669,-500.0,0.0003863,7]
[310177057,1704390641680,-500.0,0.0003863,7]
[310177059,1704390641691,-2189.53,0.0003863,7]
[310177061,1704390641704,-500.0,0.0003863,7]
[310177064,1704390641717,-500.0,0.0003863,7]
[310177066,1704390641729,-500.0,0.0003863,7]
[310177068,1704390641741,-541.21408276,0.0003863,7]
[310177070,1704390641753,-500.0,0.0003863,7]
[310177072,1704390641765,-517.28879041,0.0003863,7]
[310177073,1704390641776,-712.1,0.0003863,7]
[310177074,1704390641792,-500.0,0.0003863,7]
[310177075,1704390641802,-500.0,0.0003863,7]
[310177076,1704390641812,-501.34867279,0.0003863,7]
[310177077,1704390641822,-500.0,0.0003863,7]
[310177078,1704390641836,-893.18,0.0003863,7]
[310177079,1704390641847,-999.46362894,0.0003863,10]
[310177080,1704390641859,-500.0,0.0003863,7]
[310177081,1704390641872,-500.0,0.0003863,2]
[310177082,1704390641884,-807.53,0.0003863,7]
[310177083,1704390641895,-500.0,0.0003863,7]
[310177084,1704390641906,-500.0,0.0003863,7]
[310177085,1704390641919,-500.0,0.0003863,7]
[310177086,1704390641930,-1878.36,0.0003863,7]
[310177087,1704390641943,-500.0,0.0003863,7]
[310177088,1704390641954,-1038.7,0.0003863,7]
[310177090,1704390641967,-500.0,0.0003863,7]
[310177092,1704390641979,-500.0,0.0003863,7]
[310177094,1704390641991,-500.0,0.0003863,7]
[310177096,1704390642002,-500.0,0.0003863,7]
[310177099,1704390642012,-500.0,0.0003863,2]